{"text_format":"1","workbook":"xlsx","n_sheets":3,"sheets":["Blad1","Toelichting","Hulp"],"not_rendered":{"charts":0,"images":4,"macros":1,"external_links":0,"defined_names":14,"comments":1,"pivot_tables":0},"unopened":[],"bounds":{"document_bytes":16777216,"sheet_cells":100000,"rows_first":2000,"rows_last":500,"rows_between":2000,"halvings":0,"cell_chars":16384,"cell_head_chars":4096},"cells_cut":0,"cells_raw":0,"read":"whole","date_system":"1900"}

{"sheet":"Blad1","index":0,"n_rows":18,"n_cols":43,"rows_kept":18,"cut":false,"hidden":false,"merged":[]}
[null,null,null,null,null,null,null,null,null,null,null,null,null,null,null,null,null,null,null,null,null,null,null,null,null,null,null,"Deze kolommen verbergen omdat deze een"]
[null,null,null,"Project:","VBA in EXCEL",null,null,null,null,"Versie:","1.00",null,null,null,null,null,null,null,null,null,null,null,null,null,null,null,null,"afleiding kunnen vormen voor de gebruiker."]
[null,null,null,"Onderdeel:","Gebruik eigen invoerformulieren",null,null,null,null,null,null,null,null,null,null,null,null,null,null,null,null,null,null,null,null,null,null,"Dit kan door de kolommen te \"Groeperen\"  of"]
[null,null,null,"Datum:","2020-02-01",null,null,null,null,"Klik op cel \"Wapening\"",null,null,null,null,null,null,null,null,null,null,null,null,null,null,null,null,null,"door de kolommen te \"Verbergen\". "]
[null,null,null,null,null,null,null,null,null,null,null,null,null,null,null,null,null,null,null,null,null,null,null,null,null,null,null,"Verbergen werkt doorgaans het beste."]
[1,2,3,4,5,6,7,8,9,10,11,12,13,14,15,16,17,18,19,20,21,22,23,24,25,26,27,28,29,30,31,32,33,34,35,36,37,38,39,40,41,42,43]
[null,"Invoer",null,null,null,null,"Resultaten",null,null,null,null,null,null,null,null,null,null,"Invoer 2",null,null,null,null,null,null,null,null,null,"Hulp","Hulp","Hulp","Hulp"]
[null,"Elementtype",":","Balk",null,null,"b x h",":",{"$f":"TEXT(Breedte,\"0\") & \" x \" & TEXT(Hoogte,\"0\")","v":"400 x 500"},"mm2",null,null,null,null,null,null,null,"Gebruik van het invoermenu ook op andere locaties mogelijk.",null,null,null,null,null,null,null,null,null,"3x8"]
[null,"Breedte","=",400,"mm",null,"Md","=",{"$f":"Md","v":15.9},"kNm",null,null,null,null,null,null,null,"Met onderstaande button is het menu volledig gericht op deze locatie.",null,null,null,null,null,null,null,null,null,"4x16"]
[null,"Hoogte","=",500,"mm",null,"Aben","=",100,"mm2",null,null,null,null,null,null,null,"Een andere locatie kan ook op een ander werkblad zijn.",null,null,null,null,null,null,null,null,null,"6-150+6-500"]
[null,"Dekking","=",20,"mm",null,"Keuze",":",{"$f":"KeuzeWapening","v":"5x16"},null,null,null,null,null,null,null,null,null,null,null,null,null,null,null,null,null,null,"8-100+2x8"]
[null,"Beugel","=",6,"mm",null,"As","=",{"$f":"Wapening","v":1005.3096491487338},"mm2",null,null,null,null,null,null,null,null,":","4x12",null,null,null,null,null,null,null,"10x8"]
[null,null,":","5x16",null,null,"uc","=",{"$f":"I10/I12","v":9.9471839432434594E-2},null,null,null,null,null,null,null,null,"As","=",452.38934211693021,"mm2"]
[null,"As","=",1005.3096491487338,"mm2"]
[null,"Md","=",15.9,"kNm",null,"Berekening van Aben niet ingevoegd."]
[null,null,null,null,null,null,"Er zijn geen berekeningen (formules) in deze sheet verwerkt."]
[null,null,null,null,null,null,"De berekening van As wordt mbv VBA gedaan, binnen het invoermenu."]
[null,null,null,null,null,null,"Dit document is bedoeld voor de demonstratie van het gebruik van invoermenu's."]

{"sheet":"Toelichting","index":1,"n_rows":82,"n_cols":19,"rows_kept":82,"cut":false,"hidden":false,"merged":[]}
[]
[null,null,null,"Project:",{"$f":"Project","v":"VBA in EXCEL"},null,null,null,null,"Versie:",null,{"$f":"Versie","v":"1.00"}]
[null,null,null,"Onderdeel:",{"$f":"Onderdeel","v":"Gebruik eigen invoerformulieren"}]
[null,null,null,"Datum:",{"$f":"Datum","v":"2020-02-01"}]
[]
[]
[]
[]
[null,"Door op de cel met de tekst \"Wapening\" te klikken wordt",null,null,null,null,null,null,null,null,null,null,null,null,null,null,null,"Gebruik eigen invoerformulieren"]
[null,"het menu \"Input wapening\" gestart."]
[null,"In het invoerveldje kan de gewenste wapening worden",null,null,null,null,null,null,null,null,null,null,null,null,null,null,null,"Het gebruik van eigen invoerformulieren heeft veel grote voordelen. Onder andere:"]
[null,"opgegeven. Van de opgegeven keuze worden enkele gegevens",null,null,null,null,null,null,null,null,null,null,null,null,null,null,null,1,"Invoer gewenste informatie is overzichtelijk. Alleen bepaalde groepen informatie kunnen zichtbaar worden gemaakt."]
[null,"bepaald. De gebruiker kan direct enkele gegevens controleren",null,null,null,null,null,null,null,null,null,null,null,null,null,null,null,null,"Waardoor de gebruiker stap voor stap door het invoerproces kan worden geleid."]
[null,"en bepalen of zijn keuze akkoord is of niet.",null,null,null,null,null,null,null,null,null,null,null,null,null,null,null,2,"VBA code kan helpen om bepaalde voorselecties te geven. Deze kunnen op allerlei wijzen worden gegenereerd."]
[null,"Uitbreiding van de software (VBA) is mogelijk om ook bundels, wapening in lagen",null,null,null,null,null,null,null,null,null,null,null,null,null,null,null,null,"Zo kan ook data uit (reken)software worden overgenomen in Excel en deze kan worden gebruikt door invoermenu's."]
[null,"toe te laten. Ook kunnen andere gewenste gegevens worden",null,null,null,null,null,null,null,null,null,null,null,null,null,null,null,null,"De menu's kunnen ook worden gebruikt om specifieke data zichtbaar te maken voor de gebruiker, en deze vervolgens weer"]
[null,"bepaald die bij een specifiek ontwerp / constructie van belang zijn.",null,null,null,null,null,null,null,null,null,null,null,null,null,null,null,null,"te bewerken met VBA. Zo kan specifieke data worden gebruikt voor het opstellen van detailberekeningen (tandberekeningen,"]
[null,"Dit is uiteraard afhandelijk van de situatie en eigen wensen.",null,null,null,null,null,null,null,null,null,null,null,null,null,null,null,null,"ankers, sparingen enz). Er kunnen ook specifieke normtoetsingen worden gedaan, toetsingen die de rekensoftware niet uitvoerd,"]
[null,null,null,null,null,null,null,null,null,null,null,null,null,null,null,null,null,null,"of niet naar wens uitvoerd."]
[null,"Dit menu kan op verschillende plaatsen worden gebruikt.",null,null,null,null,null,null,null,null,null,null,null,null,null,null,null,3,"VBA code kan de invoer controleren en meldingen geven als iets niet juist is, of de invoer geheel blokkeren."]
[null,"Ook is het mogelijk om dit menu over te nemen naar een ander",null,null,null,null,null,null,null,null,null,null,null,null,null,null,null,null,"De VBA code kan helpen bij het opsporen van specifieke fouten/afwijkingen."]
[null,"Excel document. Eenmaal uitgewerkt, dan dit menu overal",null,null,null,null,null,null,null,null,null,null,null,null,null,null,null,4,"De invoerformulieren kunnen we hergebruiken voor andere Excel documenten."]
[null,"worden gebruikt.",null,null,null,null,null,null,null,null,null,null,null,null,null,null,null,5,"VBA code kan de informatie ook omzetten in andere type info, software. Zo kan de wapening worden getekend in Autocad."]
[null,null,null,null,null,null,null,null,null,null,null,null,null,null,null,null,null,null,"Er kunnen txt-bestanden (ASCII) worden gegenereerd. De informatie kan ook direct in Word of Outlook worden geplaatst."]
[null,"Door op de knop \"Toelichting\" te klikken wordt een uitleg gegeven",null,null,null,null,null,null,null,null,null,null,null,null,null,null,null,null,"Er kunnen ook andere ASCII gebaseerde typen bestanden worden gegenereerd, zoals DXF, XML, CSV, INI enz. "]
[null,"van de benodigde syntax van de opgave van de wapening. ",null,null,null,null,null,null,null,null,null,null,null,null,null,null,null,6,"VBA code kan ook PDF's genereren."]
[null,"Uiteraard kan deze worden aangepast naar eigen wensen.",null,null,null,null,null,null,null,null,null,null,null,null,null,null,null,7,"VBA code kan het resultaat van de invoer en berekeningen direct verwerken in input voor andere software,"]
[null,"Daarvoor moet de betreffende module in de VBA code worden aangepast.",null,null,null,null,null,null,null,null,null,null,null,null,null,null,null,null,"zoals een nieuwe invoerfile genereren voor rekensoftware (Autocad, Revit, AxisVM, Scia, Idea, enz). "]
[null,null,null,null,null,null,null,null,null,null,null,null,null,null,null,null,null,null,"Zo kan de berekende wapening direct worden getekent zonder tussenkomst van een modelleur. "]
[null,"De werking van het formulier kan volledig naar wens worden uitgevoerd.",null,null,null,null,null,null,null,null,null,null,null,null,null,null,null,null,"Afhankelijk van de complexiteit kan het programmeren meer tijd in beslag nemen. "]
[null,"Ook de wijze waarop knoppen, invoervelden, labels enz reageren op acties",null,null,null,null,null,null,null,null,null,null,null,null,null,null,null,8,{"$f":"\"Het is mogelijk om de layout van teksten naar wens uit te voeren, zoals 3\" & CHAR(216) & \"8\"","v":"Het is mogelijk om de layout van teksten naar wens uit te voeren, zoals 3Ø8"}]
[null,"zoals klikken, dubbel klikken enz. kan geheel volgens wens worden uitgewerkt.",null,null,null,null,null,null,null,null,null,null,null,null,null,null,null,9,"VBA code is modulair, zodat programma's in delen kunnen worden opgesteld."]
[null,"Hier zit een grote uitdaging om het invoeren van gegevens zo efficient mogelijk",null,null,null,null,null,null,null,null,null,null,null,null,null,null,null,null,"Verschillende mensen kunnen aan de code werken. Veel handen maken licht werk."]
[null,"te maken voor het dagelijkse gebruik. Het moet ook intuitief zijn.",null,null,null,null,null,null,null,null,null,null,null,null,null,null,null,10,"VBA code kan eenvoudig worden gecontroleerd, de VBA code is prima leesbaar."]
[null,"Aanpassingen aan de VBA code is later uiteraard ook mogelijk.",null,null,null,null,null,null,null,null,null,null,null,null,null,null,null,null,"De programmeur kan ook toelichtingen in de code opnemen, waardoor de code nog"]
[null,null,null,null,null,null,null,null,null,null,null,null,null,null,null,null,null,null,"meer informatie bezit die de controle vereenvoudigen. Ook kunnen notities worden opgenomen"]
[null,"De grootte en de layout van het formulier kan geheel naar eigen wensen",null,null,null,null,null,null,null,null,null,null,null,null,null,null,null,null,"voor vervolg acties zoals een to-do-list."]
[null,"worden aangepast / opgesteld. ",null,null,null,null,null,null,null,null,null,null,null,null,null,null,null,11,"De VBA code kan ook volledig gericht zijn op een eigen constructie systeem dat wordt gebruikt binnen uw bedrijf,"]
[null,null,null,null,null,null,null,null,null,null,null,null,null,null,null,null,null,null,"bijvoorbeeld prefab funderingsbalken, prefab betonnen lateien, houten spanten, houten kapconstructies enz."]
[null,"Door dubbelklik op de knop \"+\" wordt een lijst met voorselecties zichtbaar.",null,null,null,null,null,null,null,null,null,null,null,null,null,null,null,null,"Het is zelfs mogelijk om met behulp van VBA code een generiek systeem op te stellen dat volledige berekeningen"]
[null,"Deze lijst kan door de gebruiker worden ingevuld door invoer toe te voegen",null,null,null,null,null,null,null,null,null,null,null,null,null,null,null,null,"maakt van grondgebonden woningen, zoals rijtjes woningen. Door verschillende variabelen in te bouwen, zoals"]
[null,"met de \"+\" en te verwijderen met \"-\".  Door een wapening in de lijst aan te",null,null,null,null,null,null,null,null,null,null,null,null,null,null,null,null,"beukbreedtes, aantal bouwlagen, type fundering enz. kan automatisch een hele gewichtsberekening worden gegenereerd."]
[null,"klikken wordt deze direct overgenomen in de invoerveld.",null,null,null,null,null,null,null,null,null,null,null,null,null,null,null,null,"Deze gewichtsberekening kan direct wordt overgenomen in Word én het is mogelijk om direct tekeningen te "]
[null,"De voorselectielijst is een lijst met wapening die regelmatig wordt gebruikt.",null,null,null,null,null,null,null,null,null,null,null,null,null,null,null,null,"genereren. Indien er andere \"vaste\" onderdelen zijn, zoals stalen kolommen, stalen liggers, houten spanten, kunnen deze ook"]
[null,"De gebruiker kan zo sneller de gewenste wapening toepassen. ",null,null,null,null,null,null,null,null,null,null,null,null,null,null,null,null,"worden opgenomen in het systeem. Het is allemaal afhankelijk van het aantal varianten, de complexiteit van de constructie."]
[null,"In dit geval zal dit niet sneller zijn of beter, maar het geeft wel een beeld",null,null,null,null,null,null,null,null,null,null,null,null,null,null,null,null,"Hier kan het modulaire visie van VBA een grote hulp bij zijn."]
[null,"van de mogelijkheden in het gebruik van een dergelijke optie.",null,null,null,null,null,null,null,null,null,null,null,null,null,null,null,null,"Het mag duidelijk zijn dat een dergelijk opzet relatief complex is, maar de tijdswinst per woning zal ook naar verhouding zijn."]
[null,null,null,null,null,null,null,null,null,null,null,null,null,null,null,null,null,null,"Hier geldt in principe de stelling: alles kun je programmeren."]
[null,"De waarden in de lijst worden in dit geval op het werkblad zelf geplaatst.",null,null,null,null,null,null,null,null,null,null,null,null,null,null,null,12,"Met VBA code is het eenvoudig om gegevens van cellen te kopiëren naar andere cellen. Dit is bijvoorbeeld zinvol als meerdere berekening"]
[null,"Dus reeds ingevoerde waarden worden behouden en kunnen door de gebruiker",null,null,null,null,null,null,null,null,null,null,null,null,null,null,null,null,"in een Excel document dezelfde invoer behoeven. Maak van een balk eerst een berekening voor de bepaling van de buigwapening."]
[null,"elke keer weer opnieuw worden gebruikt. Bij het openen van het formulier wordt",null,null,null,null,null,null,null,null,null,null,null,null,null,null,null,null,"Daarvoor zijn o.a. de volgende gegevens nodig;  de afmetingen van de doorsnede, dekking, betonkwaliteit, milieuklasse enz. De volgende"]
[null,"de lijst automatisch gelezen. Bij het afsluiten van het formulier wordt de dan",null,null,null,null,null,null,null,null,null,null,null,null,null,null,null,null,"berekening is de bepaling van de dwarskrachtwapening. Met een klik kunnen de relevante invoergegevens worden overgenomen uit de buigberekening."]
[null,"actuele lijst op het werkblad geschreven. Oude waarden worden overschreven.",null,null,null,null,null,null,null,null,null,null,null,null,null,null,null,null,"Het is mogelijk om deze informatie direct te koppeling in Excel met verwijzende cellen, echter deze koppeling is blijvend. De berekeningen kunnen "]
[null,null,null,null,null,null,null,null,null,null,null,null,null,null,null,null,null,null,"niet onafhankelijk van elkaar worden gebruikt. Dit kan erg vervelend zijn. VBA kan dit eenvoudig oplossen."]
[null,"In het formulier kan heel veel \"intelegentie\" worden verwerkt, zodat alles sneller verloopt, betere keuzes worden gemaakt en fouten worden voorkomen."]
[null,"Zo kan de invoer volledig worden gecontroleerd, bijvoorbeeld dat de afstand tussen de staven voldoet aan de eisen EC2 (of eigen eisen). Geef een melding",null,null,null,null,null,null,null,null,null,null,null,null,null,null,null,"Er zijn nog veel meer voordelen en mogelijkheden te benoemen. De enige beperking is de creativiteit."]
[null,"als dit niet het geval is, of pas de invoer automatisch aan en/of voer opvolende acties niet uit.",null,null,null,null,null,null,null,null,null,null,null,null,null,null,null,"Tijd hoeft niet direct een factor te zijn. VBA code is modulair, waardoor de eigen software in stappen kan"]
[null,"Ook kan gebruik worden gemaakt van vaste / variabele voorkeuzes of de invoer van een voorgaande sessie wordt \"onthouden\" en weer gebruikt als de gebruiker",null,null,null,null,null,null,null,null,null,null,null,null,null,null,null,"worden opgesteld. Ook kunnen werkende delen, zoals het onderhavige invoermenu voor wapening, worden hergebruikt."]
[null,"het formulier opnieuw start. Bepaalde \"vaste\" gegevens hoeven dan niet meer opnieuw worden ingevoerd. "]
[null,"Ook is het mogelijk om gegevens uit de sheet te lezen en in het formulier op te nemen. Daar kunnen dan weer bewerkingen op worden gedaan die waardevol",null,null,null,null,null,null,null,null,null,null,null,null,null,null,null,"Het invoermenu voor wapening kan eenvoudig worden aangevuld met andere vormen van wapening, zoals het gebruik van"]
[null,"zijn voor de gebruiker. Maatgevende waarden kunnen in een overzicht snel worden weergegeven zodat de gebruiker eenvoudig een vervolg strategie kan bepalen.",null,null,null,null,null,null,null,null,null,null,null,null,null,null,null,"bundels, wapening in meerdere lagen en/of voorspanning. "]
[null,"Meer informatie op een goede en overzichtelijke manier weergegeven kan het werk van een constructeur sterkt vereenvoudigen/verbeteren.",null,null,null,null,null,null,null,null,null,null,null,null,null,null,null,"Dergelijke menu's zijn ook handig voor allerlei onderdelen die in de norm zijn opgenomen, zoals materiaaleigenschappen,"]
[null,"Ook hulpteksten bij knoppen, labels, invoervelden enz. geven de gebruiker een richting in wat deze moet doen, zonder dat dit hinderlijk is, zie ook ",null,null,null,null,null,null,null,null,null,null,null,null,null,null,null,"de dekking enz. Voor elk onderdeel kan een apart menustructuur worden opgesteld."]
[null,"het invoermenu voor de wapening. Ga met de muis rustig over de verschillende onderdelen. "]
[null,"Kortom er zijn heel veel mogelijkheden om processen, berekeningen te verbeteren door VBA intelegentie. Creativiteit is hier de enige belemmering.",null,null,null,null,null,null,null,null,null,null,null,null,null,null,null,"Om een indruk te krijgen van de benodigde tijd. De VBA code in dit Excel document is in z'n 2-3 uur op te stellen. Dit"]
[null,null,null,null,null,null,null,null,null,null,null,null,null,null,null,null,null,"is uiteraard afhankelijk van de ervaring van de programmeur en de gewenste complexiteit. Ook deze specifieke module"]
[null,"De invoer van de wapening is zo opgesteld dat bij elke invoer van een karakter de invoer wordt gecontroleerd en wordt beoordeeld. De VBA code weet",null,null,null,null,null,null,null,null,null,null,null,null,null,null,null,"kan nog worden aangevuld met allerlei controles en onderdelen. Maar er is een prima werkbaar begin gemaakt."]
[null,"wanneer een invoer af is. Dit wordt aangegeven door de tekst \"OK\" achter het label \"Keuze wapening\" op het menu."]
[null,"Het is ook mogelijk om de invoer pas te evalueren door een klik op een knop (bijvoorbeeld \"Overnemen\"). Dan moet de gebruiker een extra knop klikken"]
[null,"om informatie van de invoer zichtbaar te maken. De eerste methode is veel gebruiksvriendelijker, maar vergt iets meer VBA Code. De juiste balans moet door"]
[null,"de programmeur en de gebruikers worden gevonden."]
[null,"Met VBA Code kan op veel manieren worden gespeelt met de knoppen, input, output enz. Dit onderdeel vergt vaak de meeste tijd in het proces van"]
[null,"het programmeren. "]
[null,"Om dit soort dingen intuitief te maken kijk goed naar andere programma's en naar Microsoft applicaties. Maak gebruik van standaard werkwijzes die in deze"]
[null,"software reeds is verwerkt. Hier is goed over nagedacht en het voorkomt verwarring. Zo is het niet slim om voor toetscombinaties als \"ctrl\"+\"c\" en \"ctrl\"+\"v\""]
[null,"andere bewerkingen te programmeren, anders dan de standaard bewerkingen \"copy\" en \"paste\". "]
[null,"Het is verstandig om VBA modules een tijdlang te testen en daarna te evalueren. Vraag aan alle gebruikers wat werkt en wat niet werkt. Deze input kan worden"]
[null,"gebruikt om de VBA code aan te passen, of te gebruiken bij een volgende module."]
[]
[null,"Met VBA code is het ook mogelijk om gewenste handelingen te verrichten voordat het Excel-document wordt opgeslagen, wordt geopend, wordt afgesloten enz."]
[null,"Deze kunnen ook worden gekoppeld aan acties binnen cellen of groepen cellen. "]
[null,"Dus het is ook mogelijk eigen geprogrammeerde handelingen (VBA Code) te koppelen aan acties binnen Excel."]

{"sheet":"Hulp","index":2,"n_rows":262,"n_cols":19,"rows_kept":262,"cut":false,"hidden":false,"merged":[]}
[]
[null,null,null,"Project:",{"$f":"Project","v":"VBA in EXCEL"},null,null,null,null,"Versie:",{"$f":"Versie","v":"1.00"}]
[null,null,null,"Onderdeel:",{"$f":"Onderdeel","v":"Gebruik eigen invoerformulieren"}]
[null,null,null,"Datum:",{"$f":"Datum","v":"2020-02-01"}]
[]
[null,null,null,null,null,"Gebruik van verschillende fonts",null,null,null,null,null,null,null,null,"Gebruik van de Excelfunctie \"Teken\""]
[null,null,null,null,null,"Calibri","Symbol","Wingdings","Wingdings2","Wingdings3","MT Extra","Font","Font"]
[null,null,null,null,null,"a","a","a","a","a","a","a","a",null,1,{"$f":"CHAR(O8)","v":"\u0001"}]
[null,null,null,null,null,"b","b","b","b","b","b","b","b",null,2,{"$f":"CHAR(O9)","v":"\u0002"},null,null,"Naast liggende kolommen kunnen worden gebruikt bij het opstellen van VBA code die"]
[null,null,null,null,null,"c","c","c","c","c","c","c","c",null,3,"\u0003",null,null,"specifieke teksten moeten genereren. Daarbij kan gebruik worden gemaakt van "]
[null,null,null,null,null,"d","d","d","d","d","d","d","d",null,4,"\u0004",null,null,"verschillende fonts en tekensets binnen Excel, zoals hiernaast weergegeven."]
[null,null,null,null,null,"e","e","e","e","e","e","e","e",null,5,"\u0005"]
[null,null,null,null,null,"f","f","f","f","f","f","f","f",null,6,"\u0006"]
[null,null,null,null,null,"g","g","g","g","g","g","g","g",null,7,"\u0007"]
[null,null,null,null,null,"h","h","h","h","h","h","h","h",null,8,"\b"]
[null,null,null,null,null,"i","i","i","i","i","i","i","i",null,9,"\t"]
[null,null,null,null,null,"j","j","j","j","j","j","j","j",null,10,"\n"]
[null,null,null,null,null,"k","k","k","k","k","k","k","k",null,11,"\u000b"]
[null,null,null,null,null,"l","l","l","l","l","l","l","l",null,12,"\f"]
[null,null,null,null,null,"m","m","m","m","m","m","m","m",null,13,"\r"]
[null,null,null,null,null,"n","n","n","n","n","n","n","n",null,14,"\u000e"]
[null,null,null,null,null,"o","o","o","o","o","o","o","o",null,15,"\u000f"]
[null,null,null,null,null,"p","p","p","p","p","p","p","p",null,16,"\u0010"]
[null,null,null,null,null,"q","q","q","q","q","q","q","q",null,17,"\u0011"]
[null,null,null,null,null,"r","r","r","r","r","r","r","r",null,18,"\u0012"]
[null,null,null,null,null,"s","s","s","s","s","s","s","s",null,19,"\u0013"]
[null,null,null,null,null,"t","t","t","t","t","t","t","t",null,20,"\u0014"]
[null,null,null,null,null,"u","u","u","u","u","u","u","u",null,21,"\u0015"]
[null,null,null,null,null,"v","v","v","v","v","v","v","v",null,22,"\u0016"]
[null,null,null,null,null,"w","w","w","w","w","w","w","w",null,23,"\u0017"]
[null,null,null,null,null,"x","x","x","x","x","x","x","x",null,24,"\u0018"]
[null,null,null,null,null,"y","y","y","y","y","y","y","y",null,25,"\u0019"]
[null,null,null,null,null,"z","z","z","z","z","z","z","z",null,26,"\u001a"]
[null,null,null,null,null,"A","A","A","A","A","A","A","A",null,27,"\u001b"]
[null,null,null,null,null,"B","B","B","B","B","B","B","B",null,28,"\u001c"]
[null,null,null,null,null,"C","C","C","C","C","C","C","C",null,29,"\u001d"]
[null,null,null,null,null,"D","D","D","D","D","D","D","D",null,30,"\u001e"]
[null,null,null,null,null,"E","E","E","E","E","E","E","E",null,31,"\u001f"]
[null,null,null,null,null,"F","F","F","F","F","F","F","F",null,32," "]
[null,null,null,null,null,"G","G","G","G","G","G","G","G",null,33,"!"]
[null,null,null,null,null,"H","H","H","H","H","H","H","H",null,34,"\""]
[null,null,null,null,null,"I","I","I","I","I","I","I","I",null,35,"#"]
[null,null,null,null,null,"J","J","J","J","J","J","J","J",null,36,"$"]
[null,null,null,null,null,"K","K","K","K","K","K","K","K",null,37,"%"]
[null,null,null,null,null,"L","L","L","L","L","L","L","L",null,38,"&"]
[null,null,null,null,null,"M","M","M","M","M","M","M","M",null,39,"'"]
[null,null,null,null,null,"N","N","N","N","N","N","N","N",null,40,"("]
[null,null,null,null,null,"O","O","O","O","O","O","O","O",null,41,")"]
[null,null,null,null,null,"P","P","P","P","P","P","P","P",null,42,"*"]
[null,null,null,null,null,"Q","Q","Q","Q","Q","Q","Q","Q",null,43,"+"]
[null,null,null,null,null,"R","R","R","R","R","R","R","R",null,44,","]
[null,null,null,null,null,"S","S","S","S","S","S","S","S",null,45,"-"]
[null,null,null,null,null,"T","T","T","T","T","T","T","T",null,46,"."]
[null,null,null,null,null,"U","U","U","U","U","U","U","U",null,47,"/"]
[null,null,null,null,null,"V","V","V","V","V","V","V","V",null,48,"0"]
[null,null,null,null,null,"W","W","W","W","W","W","W","W",null,49,"1"]
[null,null,null,null,null,"X","X","X","X","X","X","X","X",null,50,"2"]
[null,null,null,null,null,"Y","Y","Y","Y","Y","Y","Y","Y",null,51,"3"]
[null,null,null,null,null,"Z","Z","Z","Z","Z","Z","Z","Z",null,52,"4"]
[null,null,null,null,null,0,0,0,0,0,0,0,0,null,53,"5"]
[null,null,null,null,null,1,1,1,1,1,1,1,1,null,54,"6"]
[null,null,null,null,null,2,2,2,2,2,2,2,2,null,55,"7"]
[null,null,null,null,null,3,3,3,3,3,3,3,3,null,56,"8"]
[null,null,null,null,null,4,4,4,4,4,4,4,4,null,57,"9"]
[null,null,null,null,null,5,5,5,5,5,5,5,5,null,58,":"]
[null,null,null,null,null,6,6,6,6,6,6,6,6,null,59,";"]
[null,null,null,null,null,7,7,7,7,7,7,7,7,null,60,"<"]
[null,null,null,null,null,8,8,8,8,8,8,8,8,null,61,"="]
[null,null,null,null,null,9,9,9,9,9,9,9,9,null,62,">"]
[null,null,null,null,null,0,0,0,0,0,0,0,0,null,63,"?"]
[null,null,null,null,null,"`","`","`","`","`","`","`","`",null,64,"@"]
[null,null,null,null,null,"~","~","~","~","~","~","~","~",null,65,"A"]
[null,null,null,null,null,"@","@","@","@","@","@","@","@",null,66,{"$f":"CHAR(O73)","v":"B"}]
[null,null,null,null,null,"#","#","#","#","#","#","#","#",null,67,"C"]
[null,null,null,null,null,"$","$","$","$","$","$","$","$",null,68,"D"]
[null,null,null,null,null,"%","%","%","%","%","%","%","%",null,69,"E"]
[null,null,null,null,null,"^","^","^","^","^","^","^","^",null,70,"F"]
[null,null,null,null,null,"&","&","&","&","&","&","&","&",null,71,"G"]
[null,null,null,null,null,"*","*","*","*","*","*","*","*",null,72,"H"]
[null,null,null,null,null,"(","(","(","(","(","(","(","(",null,73,"I"]
[null,null,null,null,null,")",")",")",")",")",")",")",")",null,74,"J"]
[null,null,null,null,null,"_","_","_","_","_","_","_","_",null,75,"K"]
[null,null,null,null,null,"-","-","-","-","-","-","-","-",null,76,"L"]
[null,null,null,null,null,"+","+","+","+","+","+","+","+",null,77,"M"]
[null,null,null,null,null,"=","=","=","=","=","=","=","=",null,78,"N"]
[null,null,null,null,null,"[","[","[","[","[","[","[","[",null,79,"O"]
[null,null,null,null,null,"]","]","]","]","]","]","]","]",null,80,"P"]
[null,null,null,null,null,"{","{","{","{","{","{","{","{",null,81,"Q"]
[null,null,null,null,null,"}","}","}","}","}","}","}","}",null,82,"R"]
[null,null,null,null,null,"\\","\\","\\","\\","\\","\\","\\","\\",null,83,"S"]
[null,null,null,null,null,"|","|","|","|","|","|","|","|",null,84,"T"]
[null,null,null,null,null,";",";",";",";",";",";",";",";",null,85,"U"]
[null,null,null,null,null,":",":",":",":",":",":",":",":",null,86,"V"]
[null,null,null,null,null,"'","'","'","'","'","'","'","'",null,87,"W"]
[null,null,null,null,null,"\"\"","\"\"","\"\"","\"\"","\"\"","\"\"","\"\"","\"\"",null,88,"X"]
[null,null,null,null,null,",",",",",",",",",",",",",",",",null,89,"Y"]
[null,null,null,null,null,"<","<","<","<","<","<","<","<",null,90,"Z"]
[null,null,null,null,null,".",".",".",".",".",".",".",".",null,91,"["]
[null,null,null,null,null,">",">",">",">",">",">",">",">",null,92,"\\"]
[null,null,null,null,null,"?","?","?","?","?","?","?","?",null,93,"]"]
[null,null,null,null,null,null,null,null,null,null,null,null,null,null,94,"^"]
[null,null,null,null,null,null,null,null,null,null,null,null,null,null,95,"_"]
[null,null,null,null,null,null,null,null,null,null,null,null,null,null,96,"`"]
[null,null,null,null,null,null,null,null,null,null,null,null,null,null,97,"a"]
[null,null,null,null,null,null,null,null,null,null,null,null,null,null,98,"b"]
[null,null,null,null,null,null,null,null,null,null,null,null,null,null,99,"c"]
[null,null,null,null,null,null,null,null,null,null,null,null,null,null,100,"d"]
[null,null,null,null,null,null,null,null,null,null,null,null,null,null,101,"e"]
[null,null,null,null,null,null,null,null,null,null,null,null,null,null,102,"f"]
[null,null,null,null,null,null,null,null,null,null,null,null,null,null,103,"g"]
[null,null,null,null,null,null,null,null,null,null,null,null,null,null,104,"h"]
[null,null,null,null,null,null,null,null,null,null,null,null,null,null,105,"i"]
[null,null,null,null,null,null,null,null,null,null,null,null,null,null,106,"j"]
[null,null,null,null,null,null,null,null,null,null,null,null,null,null,107,"k"]
[null,null,null,null,null,null,null,null,null,null,null,null,null,null,108,"l"]
[null,null,null,null,null,null,null,null,null,null,null,null,null,null,109,"m"]
[null,null,null,null,null,null,null,null,null,null,null,null,null,null,110,"n"]
[null,null,null,null,null,null,null,null,null,null,null,null,null,null,111,"o"]
[null,null,null,null,null,null,null,null,null,null,null,null,null,null,112,"p"]
[null,null,null,null,null,null,null,null,null,null,null,null,null,null,113,"q"]
[null,null,null,null,null,null,null,null,null,null,null,null,null,null,114,"r"]
[null,null,null,null,null,null,null,null,null,null,null,null,null,null,115,"s"]
[null,null,null,null,null,null,null,null,null,null,null,null,null,null,116,"t"]
[null,null,null,null,null,null,null,null,null,null,null,null,null,null,117,"u"]
[null,null,null,null,null,null,null,null,null,null,null,null,null,null,118,"v"]
[null,null,null,null,null,null,null,null,null,null,null,null,null,null,119,"w"]
[null,null,null,null,null,null,null,null,null,null,null,null,null,null,120,"x"]
[null,null,null,null,null,null,null,null,null,null,null,null,null,null,121,"y"]
[null,null,null,null,null,null,null,null,null,null,null,null,null,null,122,"z"]
[null,null,null,null,null,null,null,null,null,null,null,null,null,null,123,"{"]
[null,null,null,null,null,null,null,null,null,null,null,null,null,null,124,"|"]
[null,null,null,null,null,null,null,null,null,null,null,null,null,null,125,"}"]
[null,null,null,null,null,null,null,null,null,null,null,null,null,null,126,"~"]
[null,null,null,null,null,null,null,null,null,null,null,null,null,null,127,"\u007f"]
[null,null,null,null,null,null,null,null,null,null,null,null,null,null,128,"€"]
[null,null,null,null,null,null,null,null,null,null,null,null,null,null,129,"\u0081"]
[null,null,null,null,null,null,null,null,null,null,null,null,null,null,130,{"$f":"CHAR(O137)","v":"‚"}]
[null,null,null,null,null,null,null,null,null,null,null,null,null,null,131,"ƒ"]
[null,null,null,null,null,null,null,null,null,null,null,null,null,null,132,"„"]
[null,null,null,null,null,null,null,null,null,null,null,null,null,null,133,"…"]
[null,null,null,null,null,null,null,null,null,null,null,null,null,null,134,"†"]
[null,null,null,null,null,null,null,null,null,null,null,null,null,null,135,"‡"]
[null,null,null,null,null,null,null,null,null,null,null,null,null,null,136,"ˆ"]
[null,null,null,null,null,null,null,null,null,null,null,null,null,null,137,"‰"]
[null,null,null,null,null,null,null,null,null,null,null,null,null,null,138,"Š"]
[null,null,null,null,null,null,null,null,null,null,null,null,null,null,139,"‹"]
[null,null,null,null,null,null,null,null,null,null,null,null,null,null,140,"Œ"]
[null,null,null,null,null,null,null,null,null,null,null,null,null,null,141,"\u008d"]
[null,null,null,null,null,null,null,null,null,null,null,null,null,null,142,"Ž"]
[null,null,null,null,null,null,null,null,null,null,null,null,null,null,143,"\u008f"]
[null,null,null,null,null,null,null,null,null,null,null,null,null,null,144,"\u0090"]
[null,null,null,null,null,null,null,null,null,null,null,null,null,null,145,"‘"]
[null,null,null,null,null,null,null,null,null,null,null,null,null,null,146,"’"]
[null,null,null,null,null,null,null,null,null,null,null,null,null,null,147,"“"]
[null,null,null,null,null,null,null,null,null,null,null,null,null,null,148,"”"]
[null,null,null,null,null,null,null,null,null,null,null,null,null,null,149,"•"]
[null,null,null,null,null,null,null,null,null,null,null,null,null,null,150,"–"]
[null,null,null,null,null,null,null,null,null,null,null,null,null,null,151,"—"]
[null,null,null,null,null,null,null,null,null,null,null,null,null,null,152,"˜"]
[null,null,null,null,null,null,null,null,null,null,null,null,null,null,153,"™"]
[null,null,null,null,null,null,null,null,null,null,null,null,null,null,154,"š"]
[null,null,null,null,null,null,null,null,null,null,null,null,null,null,155,"›"]
[null,null,null,null,null,null,null,null,null,null,null,null,null,null,156,"œ"]
[null,null,null,null,null,null,null,null,null,null,null,null,null,null,157,"\u009d"]
[null,null,null,null,null,null,null,null,null,null,null,null,null,null,158,"ž"]
[null,null,null,null,null,null,null,null,null,null,null,null,null,null,159,"Ÿ"]
[null,null,null,null,null,null,null,null,null,null,null,null,null,null,160," "]
[null,null,null,null,null,null,null,null,null,null,null,null,null,null,161,"¡"]
[null,null,null,null,null,null,null,null,null,null,null,null,null,null,162,"¢"]
[null,null,null,null,null,null,null,null,null,null,null,null,null,null,163,"£"]
[null,null,null,null,null,null,null,null,null,null,null,null,null,null,164,"¤"]
[null,null,null,null,null,null,null,null,null,null,null,null,null,null,165,"¥"]
[null,null,null,null,null,null,null,null,null,null,null,null,null,null,166,"¦"]
[null,null,null,null,null,null,null,null,null,null,null,null,null,null,167,"§"]
[null,null,null,null,null,null,null,null,null,null,null,null,null,null,168,"¨"]
[null,null,null,null,null,null,null,null,null,null,null,null,null,null,169,"©"]
[null,null,null,null,null,null,null,null,null,null,null,null,null,null,170,"ª"]
[null,null,null,null,null,null,null,null,null,null,null,null,null,null,171,"«"]
[null,null,null,null,null,null,null,null,null,null,null,null,null,null,172,"¬"]
[null,null,null,null,null,null,null,null,null,null,null,null,null,null,173,"­"]
[null,null,null,null,null,null,null,null,null,null,null,null,null,null,174,"®"]
[null,null,null,null,null,null,null,null,null,null,null,null,null,null,175,"¯"]
[null,null,null,null,null,null,null,null,null,null,null,null,null,null,176,"°"]
[null,null,null,null,null,null,null,null,null,null,null,null,null,null,177,"±"]
[null,null,null,null,null,null,null,null,null,null,null,null,null,null,178,"²"]
[null,null,null,null,null,null,null,null,null,null,null,null,null,null,179,"³"]
[null,null,null,null,null,null,null,null,null,null,null,null,null,null,180,"´"]
[null,null,null,null,null,null,null,null,null,null,null,null,null,null,181,"µ"]
[null,null,null,null,null,null,null,null,null,null,null,null,null,null,182,"¶"]
[null,null,null,null,null,null,null,null,null,null,null,null,null,null,183,"·"]
[null,null,null,null,null,null,null,null,null,null,null,null,null,null,184,"¸"]
[null,null,null,null,null,null,null,null,null,null,null,null,null,null,185,"¹"]
[null,null,null,null,null,null,null,null,null,null,null,null,null,null,186,"º"]
[null,null,null,null,null,null,null,null,null,null,null,null,null,null,187,"»"]
[null,null,null,null,null,null,null,null,null,null,null,null,null,null,188,"¼"]
[null,null,null,null,null,null,null,null,null,null,null,null,null,null,189,"½"]
[null,null,null,null,null,null,null,null,null,null,null,null,null,null,190,"¾"]
[null,null,null,null,null,null,null,null,null,null,null,null,null,null,191,"¿"]
[null,null,null,null,null,null,null,null,null,null,null,null,null,null,192,"À"]
[null,null,null,null,null,null,null,null,null,null,null,null,null,null,193,"Á"]
[null,null,null,null,null,null,null,null,null,null,null,null,null,null,194,{"$f":"CHAR(O201)","v":"Â"}]
[null,null,null,null,null,null,null,null,null,null,null,null,null,null,195,"Ã"]
[null,null,null,null,null,null,null,null,null,null,null,null,null,null,196,"Ä"]
[null,null,null,null,null,null,null,null,null,null,null,null,null,null,197,"Å"]
[null,null,null,null,null,null,null,null,null,null,null,null,null,null,198,"Æ"]
[null,null,null,null,null,null,null,null,null,null,null,null,null,null,199,"Ç"]
[null,null,null,null,null,null,null,null,null,null,null,null,null,null,200,"È"]
[null,null,null,null,null,null,null,null,null,null,null,null,null,null,201,"É"]
[null,null,null,null,null,null,null,null,null,null,null,null,null,null,202,"Ê"]
[null,null,null,null,null,null,null,null,null,null,null,null,null,null,203,"Ë"]
[null,null,null,null,null,null,null,null,null,null,null,null,null,null,204,"Ì"]
[null,null,null,null,null,null,null,null,null,null,null,null,null,null,205,"Í"]
[null,null,null,null,null,null,null,null,null,null,null,null,null,null,206,"Î"]
[null,null,null,null,null,null,null,null,null,null,null,null,null,null,207,"Ï"]
[null,null,null,null,null,null,null,null,null,null,null,null,null,null,208,"Ð"]
[null,null,null,null,null,null,null,null,null,null,null,null,null,null,209,"Ñ"]
[null,null,null,null,null,null,null,null,null,null,null,null,null,null,210,"Ò"]
[null,null,null,null,null,null,null,null,null,null,null,null,null,null,211,"Ó"]
[null,null,null,null,null,null,null,null,null,null,null,null,null,null,212,"Ô"]
[null,null,null,null,null,null,null,null,null,null,null,null,null,null,213,"Õ"]
[null,null,null,null,null,null,null,null,null,null,null,null,null,null,214,"Ö"]
[null,null,null,null,null,null,null,null,null,null,null,null,null,null,215,"×"]
[null,null,null,null,null,null,null,null,null,null,null,null,null,null,216,"Ø"]
[null,null,null,null,null,null,null,null,null,null,null,null,null,null,217,"Ù"]
[null,null,null,null,null,null,null,null,null,null,null,null,null,null,218,"Ú"]
[null,null,null,null,null,null,null,null,null,null,null,null,null,null,219,"Û"]
[null,null,null,null,null,null,null,null,null,null,null,null,null,null,220,"Ü"]
[null,null,null,null,null,null,null,null,null,null,null,null,null,null,221,"Ý"]
[null,null,null,null,null,null,null,null,null,null,null,null,null,null,222,"Þ"]
[null,null,null,null,null,null,null,null,null,null,null,null,null,null,223,"ß"]
[null,null,null,null,null,null,null,null,null,null,null,null,null,null,224,"à"]
[null,null,null,null,null,null,null,null,null,null,null,null,null,null,225,"á"]
[null,null,null,null,null,null,null,null,null,null,null,null,null,null,226,"â"]
[null,null,null,null,null,null,null,null,null,null,null,null,null,null,227,"ã"]
[null,null,null,null,null,null,null,null,null,null,null,null,null,null,228,"ä"]
[null,null,null,null,null,null,null,null,null,null,null,null,null,null,229,"å"]
[null,null,null,null,null,null,null,null,null,null,null,null,null,null,230,"æ"]
[null,null,null,null,null,null,null,null,null,null,null,null,null,null,231,"ç"]
[null,null,null,null,null,null,null,null,null,null,null,null,null,null,232,"è"]
[null,null,null,null,null,null,null,null,null,null,null,null,null,null,233,"é"]
[null,null,null,null,null,null,null,null,null,null,null,null,null,null,234,"ê"]
[null,null,null,null,null,null,null,null,null,null,null,null,null,null,235,"ë"]
[null,null,null,null,null,null,null,null,null,null,null,null,null,null,236,"ì"]
[null,null,null,null,null,null,null,null,null,null,null,null,null,null,237,"í"]
[null,null,null,null,null,null,null,null,null,null,null,null,null,null,238,"î"]
[null,null,null,null,null,null,null,null,null,null,null,null,null,null,239,"ï"]
[null,null,null,null,null,null,null,null,null,null,null,null,null,null,240,"ð"]
[null,null,null,null,null,null,null,null,null,null,null,null,null,null,241,"ñ"]
[null,null,null,null,null,null,null,null,null,null,null,null,null,null,242,"ò"]
[null,null,null,null,null,null,null,null,null,null,null,null,null,null,243,"ó"]
[null,null,null,null,null,null,null,null,null,null,null,null,null,null,244,"ô"]
[null,null,null,null,null,null,null,null,null,null,null,null,null,null,245,"õ"]
[null,null,null,null,null,null,null,null,null,null,null,null,null,null,246,"ö"]
[null,null,null,null,null,null,null,null,null,null,null,null,null,null,247,"÷"]
[null,null,null,null,null,null,null,null,null,null,null,null,null,null,248,"ø"]
[null,null,null,null,null,null,null,null,null,null,null,null,null,null,249,"ù"]
[null,null,null,null,null,null,null,null,null,null,null,null,null,null,250,"ú"]
[null,null,null,null,null,null,null,null,null,null,null,null,null,null,251,"û"]
[null,null,null,null,null,null,null,null,null,null,null,null,null,null,252,"ü"]
[null,null,null,null,null,null,null,null,null,null,null,null,null,null,253,"ý"]
[null,null,null,null,null,null,null,null,null,null,null,null,null,null,254,"þ"]
[null,null,null,null,null,null,null,null,null,null,null,null,null,null,255,"ÿ"]